[Event "2nd China Binhai Open 2020"]
[Site "Tianjin"]
[Date "2020.01.18"]
[Round "9.3"]
[White "Peng, Xiongjian"]
[Black "Liu, Yan"]
[Result "1/2-1/2"]
[ECO "A50"]
[WhiteElo "2489"]
[BlackElo "2513"]
[Annotator "ChessBase"]
[PlyCount "105"]
[EventDate "2020.01.13"]
[EventType "swiss"]
[EventCountry "CHN"]
[SourceTitle "playchess.com"]
[Source "ChessBase"]
[SourceQuality "1"]
[TimeControl "5400+30"]

1. Nf3 {[%emt 0:00:00]} Nf6 {[%emt 0:00:00]} 2. c4 {[%emt 0:00:00]} b6 {[%emt 0:00:17]} 3. g3 {[%emt 0:00:01]} Bb7 {[%emt 0:00:10]} 4. Bg2 {[%emt 0:00:06]} g6 {[%emt 0:00:33]} 5. d4 {[%emt 0:02:50]} Bg7 {[%emt 0:00:19]} 6. d5 {[%emt 0:00:19]} Ne4 {[%emt 0:02:30]} 7. Nbd2 {[%emt 0:01:38]} Nc5 {[%emt 0:07:35]} 8. Nb3 {[%emt 0:01:28]} Nba6 {[%emt 0:10:18]} 9. O-O {[%emt 0:03:01]} O-O {[%emt 0:00:41]} 10. Be3 {[%emt 0:08:22]} c6 {[%emt 0:12:32]} 11. Bd4 {[%emt 0:00:48]} Bxd4 {[%emt 0:07:39]} 12. Nfxd4 {[%emt 0:00:45]} cxd5 {[%emt 0:00:43]} 13. cxd5 {[%emt 0:00:51]} e5 {[%emt 0:01:01]} 14. Nb5 {[%emt 0:18:02]} Nxb3 {[%emt 0:06:05]} 15. Qxb3 {[%emt 0:01:14]} Nc5 {[%emt 0:00:24]} 16. Qa3 {[%emt 0:03:20]} a5 {[%emt 0:02:45]} 17. d6 {[%emt 0:02:15]} e4 {[%emt 0:00:30]} 18. Rfd1 {[%emt 0:01:45]} Qf6 {[%emt 0:08:50]} 19. Nc7 {[%emt 0:01:51]} Rab8 {[%emt 0:00:40]} 20. Rab1 {[%emt 0:01:33]} Qe5 {[%emt 0:06:26]} 21. b4 {[%emt 0:05:35]} axb4 {[%emt 0:00:04]} 22. Qxb4 {[%emt 0:00:18]} Bc6 {[%emt 0:01:26]} 23. Qd4 {[%emt 0:01:32]} Qxd4 {[%emt 0:01:39]} 24. Rxd4 {[%emt 0:00:04]} Rb7 {[%emt 0:00:51]} 25. Nd5 {[%emt 0:03:07]} Bxd5 {[%emt 0:11:22]} 26. Rxd5 {[%emt 0:00:05]} Rc8 {[%emt 0:00:03]} 27. Re5 {[%emt 0:04:04]} Ra7 {[%emt 0:12:25]} 28. Bxe4 {[%emt 0:01:26]} Nxe4 {[%emt 0:01:55]} 29. Rxe4 {[%emt 0:00:05]} Rc6 {[%emt 0:00:03]} 30. Rd1 {[%emt 0:04:11]} Rxa2 {[%emt 0:00:04]} 31. Re8+ {[%emt 0:00:52]} Kg7 {[%emt 0:00:07]} 32. Re7 {[%emt 0:00:03]} Rcc2 {[%emt 0:02:58]} 33. Kf1 {[%emt 0:00:45]} g5 {[%emt 0:02:35]} 34. Rd3 {[%emt 0:02:43]} Kg6 {[%emt 0:00:07]} 35. g4 {[%emt 0:01:13]} b5 {[%emt 0:00:56]} 36. Rf3 {[%emt 0:04:45]} f6 {[%emt 0:00:05]} 37. Rh3 {[%emt 0:00:06]} h6 {[%emt 0:00:13]} 38. Rhe3 {[%emt 0:00:06]} Ra7 {[%emt 0:01:11]} 39. Re8 {[%emt 0:00:11]} f5 {[%emt 0:00:38]} 40. gxf5+ {[%emt 0:05:07]} Kxf5 {[%emt 0:00:04]} 41. Rf3+ {[%emt 0:00:03]} Kg6 {[%emt 0:00:57]} 42. e4 {[%emt 0:00:09]} b4 {[%emt 0:00:24]} 43. e5 {[%emt 0:00:15]} Kh5 {[%emt 0:00:43]} 44. Rf6 {[%emt 0:04:05]} b3 {[%emt 0:00:15]} 45. Rh8 {[%emt 0:11:12]} g4 {[%emt 0:00:07]} 46. Rhxh6+ {[%emt 0:00:20]} Kg5 {[%emt 0:00:04]} 47. Rhg6+ {[%emt 0:03:52]} Kh5 {[%emt 0:00:01]} 48. Rh6+ {[%emt 0:00:32]} Kg5 {[%emt 0:00:02]} 49. Kg2 {[%emt 0:00:19]} b2 {[%emt 0:00:06]} 50. Rhg6+ {[%emt 0:00:15]} Kh5 {[%emt 0:00:01]} 51. Rh6+ {[%emt 0:00:14]} Kg5 {[%emt 0:00:01]} 52. Rhg6+ {[%emt 0:00:15]} Kh5 {[%emt 0:00:02]} 53. Rh6+ {[%emt 0:00:18]} 1/2-1/2